bitfinex-derivatives/quotes_ETHF0:USTF0_20240920
["timestamp","ask_amount","ask_price","bid_price","bid_amount"]
[1726816905506,3.4576,2558.6,2558.1,0.76919]
[1726816905694,0.4076,2558.6,2558.2,0.39087]
[1726816905922,0.3889,2558.7,2558.3,0.4112]
[1726816906095,0.3889,2558.7,2558.4,0.3892]
[1726816906606,3.05,2558.6,2558.4,0.3892]
[1726816906804,3.05,2558.6,2558.1,0.3783]
[1726816907009,3.05,2558.6,2558.1,0.7675]
[1726816907502,3.05,2558.6,2558.1,1.15839]
[1726816907801,3.05,2558.6,2558.1,0.7675]
[1726816908497,3.05,2558.4,2558.1,0.3783]
[1726816908705,0.4099,2558.3,2558.1,0.3783]
[1726816908901,0.7868,2558.3,2558.1,0.3783]
[1726816910501,0.7868,2558.3,2558.0,3.2078]
[1726816911501,3.05,2558.2,2558.0,3.2078]
[1726816911807,7.34969,2558.2,2557.5,0.3981]
[1726816912003,3.05,2557.6,2557.3,0.76391]
[1726816912207,3.05,2557.6,2557.3,0.94986822]
[1726816912707,3.05,2557.6,2557.3,0.771]
[1726816913009,3.05,2557.5,2557.3,0.771]
[1726816914409,3.05,2557.5,2556.5,5.75794595]
[1726816914410,9.82358319,2557.4,2556.5,5.75794595]
[1726816914605,3.05,2556.8,2556.5,3.6075]
[1726816914907,3.2078,2557.1,2556.5,3.6075]
[1726816914908,3.05,2557.0,2556.5,3.6075]
[1726816915907,3.2078,2557.1,2556.5,3.6075]
[1726816918010,3.76,2556.9,2556.5,3.2078]
[1726816918201,3.76,2556.6,2555.8,1.01859761]
[1726816918408,3.76,2556.6,2555.7,0.39125]
[1726816918805,3.2078,2556.4,2555.6,3.2078]
[1726816919014,3.2078,2556.4,2555.7,0.48905703]
[1726816919211,3.2078,2556.4,2555.7,0.39125]
[1726816919908,3.76,2556.6,2555.7,0.39125]
[1726816920113,3.2078,2556.5,2555.7,0.39125]
[1726816920299,3.2078,2556.5,2555.8,0.39124]
[1726816920502,3.2078,2556.5,2555.9,0.4019]
[1726816920703,3.2078,2556.8,2556.0,0.3829]
[1726816920908,3.2078,2556.8,2556.1,0.76739]
[1726816921202,3.2078,2556.8,2556.2,3.2078]
[1726816922016,3.2078,2556.8,2556.2,3.59898]
[1726816922512,3.2078,2556.8,2556.2,3.2078]
[1726816922715,3.2078,2556.8,2556.2,3.59897]
[1726816923019,3.2078,2556.8,2556.3,0.39115]
[1726816923408,3.2078,2556.8,2556.4,0.3862]
[1726816924103,3.2078,2556.8,2556.5,0.409]
[1726816924523,7.3288,2557.2,2556.7,0.3911]
[1726816924809,7.3288,2557.2,2556.8,0.3869]
[1726816925015,7.3288,2557.2,2556.9,0.3862]
[1726816925507,3.9104,2557.1,2556.8,0.3869]
[1726816925906,7.71984,2557.2,2556.8,0.3869]
[1726816925907,3.9112,2557.0,2556.8,0.3869]
[1726816926113,3.9112,2557.1,2556.8,0.3869]
[1726816926613,3.9112,2557.0,2556.8,0.3869]
[1726816926815,7.71984,2557.2,2556.8,0.3869]
[1726816926816,3.9112,2557.1,2556.8,0.3869]
[1726816927112,3.2078,2556.9,2556.0,3.3867879]
[1726816927319,3.2078,2556.9,2556.1,1.1777]
[1726816927611,3.2078,2556.9,2556.1,1.56889]
[1726816930015,3.2078,2556.9,2556.1,1.1777]
[1726816930217,3.2078,2556.6,2556.1,1.1777]
[1726816933816,3.2078,2556.9,2556.1,1.1777]
[1726816934017,3.59888,2556.9,2556.1,1.56889]
[1726816934210,2.75676275,2556.8,2556.1,1.56889]
[1726816934417,2.75676275,2556.8,2556.1,1.1777]
[1726816934621,2.75676275,2556.8,2556.1,1.56889]
[1726816935122,2.75676275,2556.8,2556.1,1.1777]
[1726816935413,2.75676275,2556.8,2556.2,0.39117]
[1726816935618,2.75676275,2556.8,2556.2,0.39118]
[1726816935825,2.75676275,2556.8,2556.1,1.56889]
[1726816937613,3.2078,2556.9,2556.1,1.56889]
[1726816939321,3.2078,2556.9,2556.1,1.1777]
[1726816939622,3.2078,2556.6,2556.1,1.1777]
[1726816939822,3.2078,2556.6,2556.1,1.5689]
[1726816940013,3.05,2556.8,2556.1,4.6189]
[1726816940623,3.05,2556.8,2556.1,4.61889]
[1726816941519,3.05,2556.8,2556.2,0.39118]
[1726816941715,7.3288,2557.2,2556.6,3.05]
[1726816941923,7.3288,2557.2,2556.7,1.1709]
[1726816942720,7.3288,2557.2,2556.9,3.05]
[1726816943025,7.3288,2557.2,2556.8,0.39109]
[1726816943320,7.3288,2557.2,2556.7,4.61199]
[1726816943532,3.2078,2556.8,2555.7,0.97812]
[1726816943719,3.2078,2556.8,2556.2,0.39117]
[1726816944024,3.2078,2556.8,2556.3,0.7919]
[1726816944223,3.05,2556.9,2556.3,0.7919]
[1726816944625,6.2578,2557.1,2556.3,0.7919]
[1726816946329,6.64885,2557.1,2556.3,0.7919]
[1726816946625,6.2578,2557.1,2556.3,0.7919]
[1726816946825,6.2578,2557.1,2556.3,1.18306]
[1726816947227,3.05,2556.9,2556.3,0.7919]
[1726816947423,3.05,2556.9,2556.3,1.18306]
[1726816948024,3.05,2556.9,2556.4,0.39115]
[1726816948323,3.2078,2557.1,2556.4,0.39114]
[1726816948324,6.2578,2557.1,2556.4,0.39114]
[1726816948932,6.2578,2557.1,2556.5,0.39113]
[1726816949128,6.2578,2557.1,2556.6,0.3834]
[1726816949630,3.05,2557.1,2556.7,0.3729]
[1726816949829,7.3288,2557.4,2556.8,0.3801]
[1726816949830,3.05,2557.3,2556.8,0.3801]
[1726816950130,5.80745684,2557.3,2556.8,0.3801]
[1726816950519,3.05,2557.1,2556.8,0.3801]
[1726816951116,6.2578,2557.1,2556.8,0.3801]
[1726816952333,3.2078,2557.1,2556.8,0.3801]
[1726816952658,4.121,2557.4,2556.8,0.3801]
[1726816952659,7.3288,2557.4,2556.8,0.3801]
[1726816952830,3.2078,2557.4,2556.8,0.3801]
[1726816953130,2.71409466,2557.3,2556.8,0.3801]
[1726816953730,3.05,2557.7,2557.0,0.39105]
[1726816954030,2.76396442,2557.3,2557.2,3.2078]
[1726816954528,3.05,2557.7,2557.2,3.2078]
[1726816954833,3.05,2557.7,2557.1,0.7967]
[1726816954834,3.05,2557.5,2557.1,0.7967]
[1726816955138,6.2578,2557.5,2557.1,0.7967]
[1726816955435,3.2078,2557.2,2556.7,4.22639761]
[1726816955627,3.2078,2557.2,2556.8,0.3965]
[1726816955928,3.05,2557.1,2556.8,0.3965]
[1726816956740,3.2078,2557.2,2556.8,0.3965]
[1726816957127,3.05,2557.3,2556.8,0.3965]
[1726816957323,3.05,2557.3,2556.8,3.99538]
[1726816957735,6.2578,2557.5,2556.9,0.48889125]
[1726816957937,6.2578,2557.5,2557.0,0.3829]
[1726816958135,2.76548977,2557.4,2557.0,0.3829]
[1726816958432,2.76548977,2557.4,2557.0,3.5907]
[1726816960135,2.76548977,2557.4,2557.1,1.89840263]
[1726816960342,2.76548977,2557.4,2557.1,4.61743761]
[1726816960535,2.76548977,2557.4,2557.2,0.89917659]
[1726816960734,2.76548977,2557.4,2557.3,0.4013]
[1726816964834,2.76548977,2557.4,2557.0,1.16675]
[1726816965443,3.05,2557.3,2557.0,0.7757]
[1726816965939,3.05,2557.1,2556.9,0.3735]
[1726816967033,6.2578,2557.1,2556.9,0.3735]
[1726816967235,3.05,2557.4,2556.9,0.3735]
[1726816967445,3.05,2557.4,2557.0,0.39106]
[1726816967639,3.2078,2557.6,2557.0,0.39106]
[1726816967640,6.2578,2557.6,2557.0,0.39106]
[1726816967843,6.2578,2557.6,2557.1,0.3858]
[1726816968137,2.73548735,2557.5,2557.1,0.3858]
[1726816968550,2.73548735,2557.5,2557.2,0.4118]
[1726816969740,2.73548735,2557.5,2557.1,0.3858]
[1726816970543,2.73548735,2557.5,2557.1,0.77684]
[1726816970738,2.73548735,2557.5,2557.1,0.3858]
[1726816972047,2.73548735,2557.5,2557.3,3.5988]
[1726816972249,2.73548735,2557.5,2557.4,0.7917]
[1726816972543,2.75144795,2557.7,2557.4,4.3111]
[1726816972855,3.2078,2557.8,2557.5,0.7826]
[1726816973041,2.69880523,2557.7,2557.5,0.7826]
[1726816973382,2.69880523,2557.7,2557.5,1.17358]
[1726816973951,3.2078,2557.8,2557.5,1.17358]
[1726816976252,4.121,2558.1,2557.7,0.39094]
[1726816976437,6.2578,2558.3,2557.7,0.39094]
[1726816976644,3.2078,2558.3,2557.7,0.39095]
[1726816976949,2.74304673,2558.2,2557.7,0.39095]
[1726816977543,2.74304673,2558.2,2557.6,6.2578]
[1726816977544,2.74304673,2558.2,2557.5,2.19217761]
[1726816977851,2.74304673,2558.2,2557.5,3.9904]
[1726816978044,2.74304673,2558.2,2557.7,0.39094]
[1726816978237,2.74304673,2558.2,2557.5,3.9904]
[1726816978238,2.74304673,2558.2,2557.8,0.39094]
[1726816978437,2.74304673,2558.2,2557.9,0.8021]
[1726816980151,2.74304673,2558.2,2558.0,0.3954]
[1726816981050,2.74304673,2558.2,2558.1,3.44089]
[1726816981445,2.74304673,2558.2,2558.1,7.34969]
[1726816982252,2.74304673,2558.2,2558.1,3.9088]
[1726816982751,2.74304673,2558.2,2558.1,4.29969]
[1726816983149,2.74304673,2558.2,2558.1,7.34969]
[1726816983449,2.12214673,2558.2,2558.1,7.34969]
[1726816983651,6.2578,2559.0,2558.4,0.39084]
[1726816983855,3.2078,2559.0,2558.5,0.7692]
[1726816984045,3.2078,2559.0,2558.5,1.16002]
[1726816984451,3.2078,2559.0,2558.5,0.7692]
[1726816984654,3.2078,2559.0,2558.5,1.16002]
[1726816984859,3.2078,2559.0,2558.6,0.39081]
[1726816985660,3.2078,2559.0,2558.5,1.16002]
[1726816986657,3.2078,2559.0,2558.6,0.4002]
[1726816986955,6.2578,2559.0,2558.6,0.4002]
[1726816992452,3.2078,2559.0,2558.5,0.7692]
[1726816992649,3.2078,2559.0,2558.0,3.2078]
[1726816992650,3.05,2558.6,2558.0,3.2078]
[1726816992854,3.05,2558.6,2558.2,0.79037]
[1726816993551,3.05,2558.6,2558.2,0.3995]
[1726816993747,3.05,2558.4,2558.2,0.3995]
[1726816993957,6.2578,2558.4,2558.2,0.3995]
[1726816994858,3.05,2558.4,2558.2,0.3995]
[1726816995064,6.2578,2558.4,2558.2,0.3995]
[1726816996364,3.9088,2558.3,2557.7,3.2078]
[1726816996566,3.05,2558.2,2557.8,0.406]
[1726817001760,3.4451,2558.3,2557.8,0.406]
[1726817001968,3.2078,2558.4,2557.8,3.456]
[1726817002157,7.171,2558.7,2558.0,3.2078]
[1726817002356,7.171,2558.7,2558.1,0.80309]
[1726817002553,7.171,2558.7,2558.1,0.7877]
[1726817002758,7.171,2558.7,2558.1,1.17858]
[1726817002964,7.171,2558.7,2558.1,0.7877]
[1726817003659,7.171,2558.7,2558.1,1.17859]
[1726817006457,7.171,2558.7,2558.1,0.7877]
[1726817007567,7.171,2558.7,2558.1,1.17859]
[1726817007768,3.05,2558.7,2558.1,1.17859]
[1726817011372,3.05,2558.7,2558.1,0.7877]
[1726817011570,3.05,2558.7,2558.1,1.17859]
[1726817012265,3.2078,2558.5,2558.1,1.17859]
[1726817012966,3.05,2558.7,2558.1,1.17859]
[1726817013670,3.05,2558.7,2558.2,0.39086]
[1726817013965,3.05,2558.7,2558.3,0.3983]
[1726817014164,3.2078,2558.9,2558.3,3.99695]
[1726817014360,6.2578,2558.9,2558.3,3.99695]
[1726817014559,6.2578,2558.9,2558.3,3.6061]
[1726817015170,6.2578,2558.9,2558.3,3.99695]
[1726817015564,6.2578,2558.9,2558.3,3.6061]
[1726817015761,6.2578,2558.9,2558.3,3.99696]
[1726817017060,3.05,2558.7,2558.3,3.6061]
[1726817017265,3.05,2558.7,2558.3,4.62469761]
[1726817018074,3.05,2558.7,2558.3,3.6061]
[1726817018374,3.05,2558.7,2558.3,4.62469761]
[1726817019466,3.59857,2558.9,2558.3,3.6061]
[1726817019467,3.05,2558.5,2558.3,3.6061]
[1726817019672,3.05,2558.5,2558.3,0.3983]
[1726817021075,3.05,2558.4,2558.3,0.3983]
[1726817021271,3.05,2558.4,2558.0,0.3815]
[1726817021467,6.64868,2558.2,2557.7,0.3993]
[1726817021673,3.05,2557.9,2557.7,0.3815]
[1726817021974,0.4015,2558.1,2557.7,0.3815]
[1726817021975,3.4515,2558.1,2557.7,0.3815]
[1726817022174,3.4515,2558.1,2557.8,0.48446443]
[1726817022362,3.05,2558.1,2557.7,1.40009761]
[1726817022568,3.05,2558.1,2557.8,0.88379722]
[1726817022783,3.05,2558.1,2557.8,0.3993]
[1726817024474,3.2078,2558.2,2557.8,0.3993]
[1726817025173,0.4015,2558.6,2558.0,0.3909]
[1726817025472,0.4015,2558.6,2558.1,0.39088]
[1726817025666,0.4015,2558.6,2558.2,0.4065]
[1726817025861,0.4015,2558.6,2558.3,0.3851]
[1726817026667,3.05,2559.0,2558.3,3.5929]
[1726817026871,3.05,2559.0,2558.4,0.4743934]
[1726817027068,3.05,2559.0,2558.3,4.61149761]
[1726817027265,3.6121,2559.1,2558.4,1.49301508]
[1726817027469,3.05,2559.0,2558.4,1.01859761]
[1726817027681,3.05,2559.0,2558.5,0.3981]
[1726817030073,3.44076,2559.0,2558.5,0.3981]
[1726817030271,3.05,2559.0,2558.5,0.3981]
[1726817031380,3.05,2558.8,2558.3,4.61149761]
[1726817031684,3.05,2558.6,2558.2,0.785]
[1726817031980,3.05,2558.6,2558.2,1.17587]
[1726817032473,3.05,2558.6,2558.2,0.785]
[1726817033280,3.05,2558.4,2558.2,0.785]
[1726817033982,3.05,2558.6,2558.2,0.4065]
[1726817034185,0.3781,2558.5,2558.2,0.4065]
[1726817034477,3.5859,2558.5,2558.2,0.4065]
[1726817034885,3.05,2558.7,2558.2,0.4065]
[1726817036289,3.05,2558.5,2558.2,0.4065]
[1726817037674,3.05,2558.3,2558.0,1.40029761]
[1726817037883,3.05,2558.3,2558.0,1.80659761]
[1726817039788,3.05,2558.3,2558.1,0.47463]
[1726817040086,3.05,2558.3,2558.0,1.80659761]
[1726817040380,3.2078,2558.4,2558.0,0.788]
[1726817040788,0.3781,2558.8,2558.1,1.88406371]
[1726817040789,3.05,2558.7,2558.1,1.88406371]
[1726817040981,3.05,2558.7,2558.2,0.47456306]
[1726817041185,3.05,2558.7,2558.3,0.3989]
[1726817042089,6.2578,2558.5,2558.0,1.80659761]
[1726817042283,6.2578,2558.5,2558.1,1.01859761]
[1726817044377,6.2578,2558.5,2558.1,1.40947761]
[1726817044577,6.2578,2558.5,2558.2,0.4746043]
[1726817044889,3.2078,2558.5,2558.1,1.01859761]
[1726817045085,3.2078,2558.5,2558.2,1.49317472]
[1726817045283,3.2078,2558.5,2558.3,0.47457711]
[1726817045586,0.3781,2558.8,2558.4,0.47450017]
[1726817045794,0.3781,2558.8,2558.5,0.4047]
[1726817047588,3.05,2558.7,2558.5,0.4047]
[1726817049582,6.2578,2558.9,2558.5,0.8025]
[1726817050291,3.05,2558.7,2558.5,0.8025]
[1726817050893,3.05,2558.7,2558.5,0.4047]
[1726817051094,3.05,2558.7,2558.4,0.3884]
[1726817051290,3.05,2558.5,2558.4,0.3884]
[1726817052382,3.05,2558.7,2558.4,0.3884]
[1726817067907,1.41,2558.7,2558.4,0.3884]
[1726817074905,4.6178,2558.5,2558.3,1.39389761]
[1726817075205,4.6178,2558.5,2557.7,1.01859761]
[1726817075206,0.3909,2558.1,2557.7,1.01859761]
[1726817075412,1.41,2557.8,2557.7,0.4054]
[1726817076311,11.3196,2557.8,2557.3,1.01859761]
[1726817076504,11.3196,2557.8,2556.6,3.84809668]
[1726817076505,4.6178,2557.4,2556.8,0.4054]
[1726817076709,3.2078,2557.4,2556.8,0.4054]
[1726817076911,2.76959335,2557.3,2556.8,0.4054]
[1726817077108,1.41,2557.0,2556.8,0.4054]
[1726817077310,1.41,2556.9,2556.8,0.4054]
[1726817077912,6.9612,2556.9,2556.8,0.4054]
[1726817078216,6.9612,2556.9,2556.2,0.4113]
[1726817078516,3.05,2556.6,2556.3,0.3972]
[1726817080715,3.05,2556.8,2556.3,0.3972]
[1726817080918,3.2078,2557.0,2556.3,0.3972]
[1726817081107,6.2578,2557.0,2556.3,0.3972]
[1726817083403,3.05,2556.8,2556.3,0.3972]
[1726817084020,6.2578,2557.0,2556.3,0.3972]
[1726817087316,3.05,2556.8,2556.3,0.3972]
[1726817087516,3.2078,2556.7,2556.3,0.3972]
[1726817088012,3.05,2556.6,2556.3,0.3972]
[1726817091719,6.2578,2556.4,2555.5,4.104]
[1726817092025,2.71180197,2556.3,2556.0,0.3918]
[1726817094221,3.05,2556.2,2556.0,0.3918]
[1726817094524,2.73491325,2556.1,2556.0,0.3918]
[1726817095721,6.64691325,2556.1,2556.0,0.3918]
[1726817095929,9.85471325,2556.1,2555.6,0.7652]
[1726817096114,3.05,2556.0,2555.7,0.3817]
[1726817097425,3.44122,2556.0,2555.7,0.3817]
[1726817097638,3.05,2555.8,2555.7,0.3817]
[1726817098224,6.2578,2555.8,2555.4,0.3913]
[1726817098425,6.2578,2555.8,2555.4,0.773]
[1726817098727,6.2578,2555.8,2555.4,0.77299]
[1726817098928,6.2578,2555.8,2555.4,0.3817]
[1726817099226,3.05,2555.8,2555.4,0.3817]
[1726817099823,3.2078,2555.5,2554.7,3.38307133]
[1726817100034,3.2078,2555.5,2555.0,0.3875]
[1726817100236,3.05,2555.7,2555.0,6.6453]
[1726817100533,2.74225606,2555.6,2555.1,0.39134]
[1726817100730,3.05,2555.3,2555.0,0.3875]
[1726817101066,3.05,2555.4,2555.0,0.77886]
[1726817101224,3.05,2555.4,2555.0,0.3875]
[1726817101430,3.05,2555.1,2555.0,0.3875]
[1726817102732,3.05,2555.1,2554.8,0.3982]
[1726817102931,3.05,2554.9,2554.8,0.8001]
[1726817103432,10.1722,2554.9,2554.1,0.3915]
[1726817103643,3.05,2554.6,2554.4,0.4019]
[1726817107033,3.05,2554.6,2554.0,3.59931]
[1726817107238,3.05,2554.6,2554.1,1.528]
[1726817109429,3.05,2554.6,2554.1,1.1365]
[1726817109838,3.05,2554.6,2554.1,1.528]
[1726817110230,3.05,2554.6,2554.1,1.1365]
[1726817111146,3.05,2554.6,2554.2,0.39148]
[1726817111343,3.2078,2554.9,2554.3,0.39146]
[1726817111640,3.05,2554.6,2554.2,0.39148]
[1726817112936,3.05,2554.6,2554.2,0.39149]
[1726817113136,3.05,2554.6,2554.1,1.1365]
[1726817113337,3.05,2554.6,2554.3,0.39147]
[1726817113540,3.05,2554.6,2554.1,1.1365]
[1726817113844,7.171,2555.0,2554.4,3.05]
[1726817114142,3.05,2555.0,2554.6,3.59921]
[1726817114338,3.05,2555.0,2554.7,0.7648]
[1726817114536,3.05,2555.0,2554.7,1.5602]
[1726817115138,4.121,2555.4,2554.7,5.0832]
[1726817115342,0.97793,2556.3,2555.2,3.2078]
[1726817115343,4.121,2556.0,2555.2,3.2078]
[1726817115534,3.05,2555.8,2555.3,1.1688]
[1726817115734,4.5251,2556.3,2555.7,0.39125]
[1726817115735,3.05,2556.2,2555.7,0.39125]
[1726817115934,3.05,2556.2,2555.8,0.79314]
[1726817116239,3.05,2556.2,2555.9,0.3862]
[1726817116543,3.2078,2556.5,2555.9,0.77742]
[1726817116544,3.05,2556.4,2555.9,0.77742]
[1726817117837,3.05,2556.2,2555.9,0.3862]
[1726817118036,3.05,2556.0,2555.9,0.3862]
[1726817118540,6.2578,2556.2,2555.9,0.3862]
[1726817119340,3.2078,2556.2,2555.9,0.77742]
[1726817119538,3.2078,2556.2,2555.9,4.68942]
[1726817119742,3.2078,2556.2,2556.0,0.39121]
[1726817119946,3.2078,2556.2,2555.9,0.77742]
[1726817120341,3.2078,2556.2,2556.0,0.39121]
[1726817120642,3.2078,2556.2,2555.9,4.2982]
[1726817120836,3.2078,2556.2,2555.9,0.3862]
[1726817121036,3.05,2556.3,2555.9,0.77743]
[1726817122540,3.05,2556.1,2555.9,0.3862]
[1726817122933,6.2578,2556.1,2555.9,0.3862]
[1726817123138,3.05,2556.1,2555.9,0.3862]
[1726817126035,3.2078,2556.4,2555.9,0.3862]
[1726817126338,3.05,2556.3,2555.9,0.3862]
[1726817127445,3.05,2556.1,2555.9,0.3862]
[1726817128349,3.05,2556.1,2555.3,3.5864]
[1726817128350,0.39127,2555.7,2554.9,4.56276153]
[1726817128644,3.05,2555.3,2555.0,0.39136]
[1726817129746,3.05,2555.5,2555.1,0.39135]
[1726817129936,3.05,2555.5,2554.9,3.5885]
[1726817130136,3.05,2555.5,2555.3,3.2078]
[1726817130541,3.05,2555.9,2555.3,3.2078]
[1726817130836,3.2078,2556.0,2555.6,3.05]
[1726817131144,3.2078,2556.0,2555.7,0.80096]
[1726817131345,3.2078,2556.0,2555.7,0.4097]
[1726817131733,3.05,2556.1,2555.7,0.4097]
[1726817131938,3.05,2556.1,2555.7,0.80095]
[1726817132144,3.05,2556.1,2555.8,0.39123]
[1726817132641,3.05,2556.1,2555.7,0.80095]
[1726817133442,6.2578,2556.1,2555.7,0.80095]
[1726817133654,3.05,2556.1,2555.7,0.80095]
[1726817133834,6.2578,2556.1,2555.7,0.80095]
[1726817134040,3.05,2556.1,2555.7,0.4097]
[1726817134238,6.2578,2555.8,2555.0,1.01859761]
[1726817134437,3.05,2555.5,2555.1,0.4054]
[1726817138249,3.05,2555.6,2555.1,0.79674]
[1726817140756,4.121,2556.1,2555.5,3.05]
[1726817141055,10.3788,2556.5,2555.9,0.39122]
[1726817141351,6.2578,2556.5,2556.0,0.3863]
[1726817141746,6.2578,2556.5,2556.0,0.7775]
[1726817142052,6.2578,2556.5,2556.1,0.3796]
[1726817143042,3.2078,2556.5,2556.1,0.3796]
[1726817143251,3.2078,2556.5,2556.1,0.77079]
[1726817143452,3.2078,2556.5,2556.1,0.3796]
[1726817144050,6.2578,2556.5,2556.1,0.3796]
[1726817147055,6.2578,2556.5,2556.1,0.7708]
[1726817147452,6.2578,2556.5,2556.1,0.3796]
[1726817148260,6.2578,2556.5,2556.0,0.3863]
[1726817148261,3.05,2556.3,2556.0,0.3863]
[1726817150957,6.2578,2556.5,2556.0,0.3863]
[1726817151351,3.05,2556.3,2556.0,0.3863]
[1726817153963,3.2078,2556.5,2556.0,0.77751]
[1726817154661,3.2078,2556.5,2556.0,0.3863]
[1726817155761,3.2078,2556.5,2556.0,0.7775]
[1726817155951,0.4021,2556.7,2556.1,0.4132]
[1726817156556,3.05,2556.6,2556.1,0.4132]
[1726817157163,3.05,2556.4,2556.0,0.3863]
[1726817157858,0.4021,2556.7,2556.1,0.39118]
[1726817158061,0.4021,2556.7,2556.1,0.3912]
[1726817158264,3.2078,2556.6,2556.0,3.4363]
[1726817158460,3.2078,2556.6,2556.0,3.8275]
[1726817159369,3.2078,2556.6,2556.0,4.84609761]
[1726817159662,3.2078,2556.6,2556.2,3.05]
[1726817160079,4.121,2556.9,2556.3,0.4037]
[1726817160262,4.121,2556.9,2556.4,3.05]
[1726817160463,4.121,2556.9,2556.5,0.3781]
[1726817160667,3.6187,2557.0,2556.5,0.3781]
[1726817161271,6.6687,2557.0,2556.5,1.39669761]
[1726817161560,6.6687,2557.0,2556.5,0.3781]
[1726817162665,3.05,2556.8,2556.5,0.3781]
[1726817162861,6.2578,2556.6,2556.1,1.01859761]
[1726817163269,6.2578,2556.6,2556.1,1.40978761]
[1726817163965,6.2578,2556.6,2556.1,0.39119]
[1726817164671,3.05,2556.8,2556.0,1.01859761]
[1726817164867,3.05,2556.8,2556.2,0.39117]
[1726817165066,3.05,2556.8,2556.3,0.38]
[1726817165263,3.05,2556.8,2556.3,0.7564]
[1726817165667,3.05,2556.8,2556.3,1.14756]
[1726817165864,3.05,2556.8,2556.3,0.7564]
[1726817166465,3.05,2556.8,2556.3,1.14756]
[1726817166671,3.05,2556.8,2556.3,0.7564]
[1726817168162,3.05,2556.8,2556.3,1.14756]
[1726817169072,3.05,2556.8,2556.3,0.7564]
[1726817169368,3.2078,2556.9,2556.3,4.19756]
[1726817170373,6.64883,2557.2,2556.5,3.05]
[1726817170678,0.39105,2557.1,2556.5,3.05]
[1726817170971,2.75626702,2557.5,2557.3,0.39101]
[1726817171182,3.2078,2557.9,2557.4,3.05]
[1726817171365,3.2078,2557.9,2557.6,3.05]
[1726817171567,3.2078,2558.4,2557.8,3.05]
[1726817172274,3.2078,2558.4,2557.9,0.39092]
[1726817172469,3.2078,2558.4,2557.8,3.05]
[1726817172773,6.2578,2558.0,2557.0,1.01859761]
[1726817172970,3.44094,2557.8,2557.1,0.7679]
[1726817173370,3.2078,2557.7,2557.1,0.7679]
[1726817173669,3.44094,2557.8,2557.1,0.7679]
[1726817174174,3.05,2557.8,2557.1,0.7679]
[1726817175588,3.05,2557.8,2556.7,1.71442344]
[1726817175589,3.05,2557.2,2556.5,8.15059761]
[1726817175776,3.05,2557.6,2556.9,0.3875]
[1726817176078,3.05,2557.6,2557.0,3.6071]
[1726817176881,6.2578,2557.8,2557.0,3.6071]
[1726817177090,6.2578,2557.8,2557.1,4.72095655]
[1726817177786,6.2578,2557.8,2557.1,4.32991655]
[1726817177990,6.2578,2557.8,2557.1,4.71011655]
[1726817178177,3.2078,2557.5,2557.1,4.71011655]
[1726817178374,6.2578,2557.8,2557.1,5.10115655]
[1726817179296,6.2578,2557.8,2557.5,3.05]
[1726817179297,3.2078,2557.8,2557.5,3.05]
[1726817179502,3.4231,2558.2,2557.6,1.1691]
[1726817179702,3.4231,2558.2,2557.6,4.3769]
[1726817179902,2.71814357,2558.1,2557.6,1.1691]
[1726817180406,2.71814357,2558.1,2557.6,4.3769]
[1726817181597,3.2078,2558.0,2557.6,4.3769]
[1726817182306,3.05,2557.8,2557.6,0.3936]
[1726817182600,3.05,2557.8,2557.1,3.05]
[1726817182601,3.2078,2557.7,2557.1,0.4108]
[1726817182800,3.05,2557.8,2557.2,3.2078]
[1726817183007,6.2578,2558.0,2557.3,3.44101]
[1726817184004,3.2078,2558.0,2557.3,0.39101]
[1726817185013,3.2078,2558.0,2557.2,3.2078]
[1726817185014,3.2078,2558.0,2557.2,3.59882]
[1726817185396,3.2078,2558.0,2557.3,4.4989217]
[1726817185606,3.2078,2558.0,2557.3,4.8899317]
[1726817185812,3.2078,2558.0,2557.3,4.4989217]
[1726817186308,3.2078,2558.0,2557.2,0.39102]
[1726817186701,3.2078,2558.0,2557.3,0.39101]
[1726817187297,3.2078,2558.0,2557.1,0.4108]
[1726817187500,3.2078,2558.0,2557.1,0.80183]
[1726817187501,0.39093,2557.9,2557.1,0.80183]
[1726817188615,0.39095,2557.7,2557.1,0.4108]
[1726817188814,0.3995,2557.6,2557.1,0.4108]
[1726817189310,0.3995,2557.6,2557.0,0.78585]
[1726817189506,0.3995,2557.6,2557.0,0.3948]
[1726817189708,0.3995,2557.6,2557.1,0.4085]
[1726817190000,3.75,2557.3,2557.0,0.3948]
[1726817190204,3.75,2557.3,2556.3,1.53154834]
[1726817190205,0.39109,2556.9,2556.3,3.2078]
[1726817190410,0.39107,2557.0,2556.3,0.39116]
[1726817190800,0.77927,2557.0,2556.3,0.39116]
[1726817191719,0.77927,2557.0,2556.2,1.21057]
[1726817191720,0.39108,2556.9,2556.2,1.21057]
[1726817192011,0.3882,2557.0,2556.2,0.8194]
[1726817192222,0.39108,2556.9,2556.2,0.8194]
[1726817192710,0.39108,2556.9,2556.2,1.21058]
[1726817194109,3.75,2556.8,2556.2,0.8194]
[1726817194413,7.3489,2556.8,2556.2,0.8194]
[1726817194911,7.3489,2556.8,2556.2,1.21058]
[1726817195118,6.9578,2556.8,2556.2,0.8194]
[1726817195421,7.34889,2556.8,2556.2,0.8194]